bitfinex-derivatives/quotes_SOLF0:USTF0_20250325
["timestamp","ask_amount","ask_price","bid_price","bid_amount"]
[1742901856607,7.0066,142.71,142.69,0.04813917]
[1742901857504,7.0068,142.7,142.69,0.04813917]
[1742901865013,7.0066,142.71,142.69,0.04813917]
[1742901866110,7.0068,142.7,142.69,0.04813917]
[1742901879414,7.0068,142.7,142.69,3.917e-05]
[1742901888726,7.0092,142.66,142.62,7.0105]
[1742901888921,8.32185073,142.71,142.61,38.85450702]
[1742901889428,8.32185073,142.69,142.61,38.85450702]
[1742901890025,7.0105,142.63,142.61,38.85450702]
[1742901890527,7.0105,142.63,142.61,38.90678534]
[1742901890825,7.0107,142.62,142.61,38.90678534]
[1742901891026,14.016,142.68,142.61,38.90678534]
[1742901891227,7.06128886,142.63,142.61,38.90678534]
[1742901891426,7.0593217,142.63,142.61,38.90678534]
[1742901892125,7.0593217,142.63,142.61,0.05227832]
[1742901892931,7.0107,142.62,142.61,0.05227832]
[1742901899434,0.0490217,142.63,142.61,0.05227832]
[1742901900430,0.0490217,142.63,142.61,7.06317832]
[1742901900836,0.0490217,142.63,142.61,0.05227832]
[1742901901041,0.0490217,142.63,142.61,7.06327832]
[1742901901538,0.0490217,142.63,142.62,7.0107]
[1742901901737,0.0490217,142.63,142.61,0.05227832]
[1742901902239,0.0490217,142.63,142.62,7.0107]
[1742901902636,0.0490217,142.63,142.61,0.05227832]
[1742901903238,7.0593217,142.63,142.61,0.05227832]
[1742901903536,0.0490217,142.63,142.61,0.05227832]
[1742901903841,7.0107,142.62,142.61,0.05227832]
[1742901908039,7.0107,142.62,142.61,7.832e-05]
[1742901913046,7.0129,142.58,142.56,0.03677644]
[1742901913550,7.013,142.58,142.56,0.03677644]
[1742901913754,14.0207,142.63,142.56,0.03677644]
[1742901913949,8.32185073,142.62,142.56,0.03677644]
[1742901914347,7.0122,142.59,142.58,0.04625436]
[1742901914948,7.0132,142.57,142.56,0.03677644]
[1742901915453,7.0147,142.54,142.53,9.71362675]
[1742901917351,7.0147,142.54,142.52,0.05091174]
[1742901918054,0.05060388,142.55,142.52,0.05091174]
[1742901918554,0.05060388,142.55,142.53,7.0149]
[1742901919855,0.05060388,142.55,142.52,0.05091174]
[1742901920555,0.05060388,142.55,142.53,7.0149]
[1742901920757,0.05060388,142.55,142.52,0.05091174]
[1742901921147,7.06480388,142.55,142.52,7.06631174]
[1742901923656,0.05060388,142.55,142.52,0.05091174]
[1742901924157,0.05060388,142.55,142.54,7.0147]
[1742901924358,8.32185073,142.65,142.52,0.05091174]
[1742901924558,8.32185073,142.65,142.5,25.32]
[1742901924751,7.0133,142.57,142.55,7.014]
[1742901925158,8.32185073,142.65,142.56,7.0136]
[1742901925457,0.04539562,142.62,142.59,0.04541604]
[1742901925757,7.0117,142.6,142.59,0.04541604]
[1742901929856,7.0115,142.61,142.59,0.04541604]
[1742901930060,0.04539562,142.62,142.59,7.05761604]
[1742901930250,0.04539562,142.62,142.59,0.04541604]
[1742901930659,0.04539562,142.62,142.6,7.0115]
[1742901935061,0.04539562,142.62,142.61,7.0112]
[1742901935657,0.04539562,142.62,142.6,7.0115]
[1742901936565,0.04539562,142.62,142.61,7.0112]
[1742901936864,0.04539562,142.62,142.59,0.04541604]
[1742901937158,7.05639562,142.62,142.59,7.05741604]
[1742901937464,0.04539562,142.62,142.59,0.04541604]
[1742901937856,7.0117,142.6,142.59,0.04541604]
[1742901938453,7.0141,142.56,142.54,9.71362675]
[1742901939055,7.0135,142.57,142.54,9.71362675]
[1742901939455,7.0135,142.57,142.54,16.72822675]
[1742901939660,7.06710103,142.57,142.54,16.77731629]
[1742901939862,0.05360103,142.57,142.54,0.04908954]
[1742901941065,7.0142,142.55,142.54,0.04908954]
[1742901945862,0.05360103,142.57,142.54,0.04908954]
[1742901946771,0.05360103,142.57,142.56,7.0137]
[1742901956084,0.05360103,142.57,142.54,0.04908954]
[1742901956777,7.014,142.56,142.54,0.04908954]
[1742901958170,7.0142,142.55,142.54,0.04908954]
[1742901976590,7.0162,142.51,142.5,9.71362675]
[1742901977403,7.0162,142.51,142.49,0.06761067]
[1742901977596,7.0158,142.52,142.49,7.08471067]
[1742901977897,0.04603166,142.51,142.49,7.13276888]
[1742901979099,8.32185073,142.59,142.49,0.11566888]
[1742901979299,8.32185073,142.61,142.49,0.06761067]
[1742901980297,7.0590165,142.56,142.54,0.05011593]
[1742901980497,7.0141,142.56,142.54,0.05011593]
[1742901980699,7.0627565,142.56,142.54,0.05011593]
[1742901983201,0.0486565,142.56,142.54,0.05011593]
[1742901983400,8.32185073,142.65,142.54,0.05011593]
[1742901983698,8.32185073,142.65,142.57,7.0129]
[1742901984294,7.0116,142.61,142.57,7.0129]
[1742901984596,0.05221793,142.62,142.6,0.04990184]
[1742901984790,7.0112,142.61,142.6,0.04990184]
[1742901984993,0.05221793,142.62,142.5,64.15450702]
[1742901985199,8.32185073,142.65,142.5,64.15450702]
[1742901985900,8.32185073,142.65,142.55,7.0141]
[1742901986101,0.05053116,142.59,142.56,0.05212334]
[1742901986298,8.32185073,142.65,142.55,7.0141]
[1742901986495,7.06203174,142.59,142.56,0.0511332]
[1742901986702,7.0125,142.59,142.55,7.0141]
[1742901986903,7.060707,142.59,142.56,0.05096957]
[1742901987107,7.060707,142.59,142.56,7.06466957]
[1742901987604,0.048207,142.59,142.56,7.06466957]
[1742901987905,0.048207,142.59,142.57,7.0132]
[1742901988198,0.048207,142.59,142.56,0.05096957]
[1742901988399,0.048207,142.59,142.58,7.0127]
[1742901990300,0.048207,142.59,142.57,7.013]
[1742901990606,0.048207,142.59,142.56,0.05096957]
[1742901990802,0.048207,142.59,142.57,7.0132]
[1742901991407,0.048207,142.59,142.58,7.0127]
[1742901993120,8.32185073,142.67,142.56,0.05096957]
[1742901993308,8.32185073,142.67,142.54,15.81842755]
[1742901994220,7.06167992,142.62,142.59,7.05862733]
[1742901994717,0.05057992,142.62,142.59,0.04662733]
[1742901994918,7.0116,142.61,142.59,0.04662733]
[1742901995121,0.05057992,142.62,142.59,0.04662733]
[1742901995620,7.0117,142.6,142.59,0.04662733]
[1742902024846,7.0114,142.61,142.59,0.04662733]
[1742902025748,7.0114,142.61,142.59,7.05882733]
[1742902026547,7.0114,142.61,142.59,0.04662733]
[1742902026747,7.0117,142.6,142.59,0.04662733]
[1742902031842,7.0115,142.61,142.59,0.04662733]
[1742902032044,0.05057992,142.62,142.59,0.04662733]
[1742902032548,0.05057992,142.62,142.61,7.0112]
[1742902033149,7.06137992,142.62,142.6,7.0115]
[1742902033344,0.05057992,142.62,142.59,0.04662733]
[1742902033749,7.0115,142.61,142.59,0.04662733]
[1742902034251,7.0117,142.6,142.59,0.04662733]
[1742902034944,0.05057992,142.62,142.59,0.04662733]
[1742902035346,7.06137992,142.62,142.6,7.0115]
[1742902035551,0.05057992,142.62,142.59,0.04662733]
[1742902036251,0.05057992,142.62,142.6,7.0117]
[1742902036654,0.05057992,142.62,142.59,0.04662733]
[1742902037853,0.05057992,142.62,142.61,7.0112]
[1742902042250,0.05057992,142.62,142.59,0.04662733]
[1742902043055,7.0117,142.6,142.59,0.04662733]
[1742902059075,7.0147,142.54,142.53,9.71362675]
[1742902060163,0.04636359,142.55,142.53,9.71362675]
[1742902060368,16.55468906,142.6,142.53,9.71362675]
[1742902060575,0.04635425,142.55,142.53,9.76533109]
[1742902060771,7.0147,142.54,142.53,9.76533109]
[1742902061376,7.0147,142.54,142.53,0.05170434]
[1742902063379,7.0157,142.52,142.51,26.12740702]
[1742902063571,8.32185073,142.52,142.48,193.07570429]
[1742902064080,7.0171,142.49,142.48,193.07570429]
[1742902064977,0.04837324,142.5,142.47,0.0526313]
[1742902067184,7.06507324,142.5,142.47,0.0526313]
[1742902067776,0.04837324,142.5,142.47,0.0526313]
[1742902067982,8.37022397,142.5,142.47,0.0526313]
[1742902068377,7.0176,142.48,142.47,0.0526313]
[1742902071380,7.0174,142.49,142.47,0.0526313]
[1742902071585,0.04837324,142.5,142.47,0.0526313]
[1742902071987,7.06507324,142.5,142.47,0.0526313]
[1742902073989,7.0176,142.48,142.47,0.0526313]
[1742902074185,0.04837324,142.5,142.47,0.0526313]
[1742902074790,7.0174,142.49,142.47,0.0526313]
[1742902075790,7.0176,142.48,142.47,0.0526313]
[1742902079493,7.0174,142.49,142.47,0.0526313]
[1742902079695,0.04837324,142.5,142.47,0.0526313]
[1742902080191,7.0176,142.48,142.47,0.0526313]
[1742902097803,7.0176,142.48,142.47,3.13e-05]
[1742902098105,8.37022397,142.5,142.38,0.12432696]
[1742902098311,8.32185073,142.5,142.38,0.12432696]
[1742902098599,7.0205,142.43,142.38,0.12432696]
[1742902099196,0.0509297,142.42,142.39,0.05020525]
[1742902100006,0.0509297,142.42,142.4,7.0215]
[1742902103005,0.0509297,142.42,142.41,7.0211]
[1742902105412,38.58537201,142.5,142.46,7.0184]
[1742902106213,7.0174,142.49,142.46,7.0184]
[1742902106613,7.06606552,142.49,142.46,7.06453982]
[1742902107712,7.0177,142.48,142.46,0.04613982]
[1742902108609,7.06606552,142.49,142.46,0.04613982]
[1742902109511,7.0176,142.48,142.46,0.04613982]
[1742902112718,7.0181,142.47,142.46,0.04613982]
[1742902113308,7.0202,142.43,142.38,0.12432696]
[1742902113508,8.32185073,142.48,142.39,7.0217]
[1742902113917,7.0208,142.42,142.39,7.0217]
[1742902114520,7.0703981,142.42,142.39,7.07557983]
[1742902118221,7.0211,142.41,142.39,7.07557983]
[1742902121224,0.0495981,142.42,142.4,7.0215]
[1742902121225,7.0704981,142.42,142.4,7.0215]
[1742902121428,0.0495981,142.42,142.4,7.0215]
[1742902123020,0.0495981,142.42,142.41,7.0211]
[1742902123628,0.0495981,142.42,142.4,7.0215]
[1742902124531,0.0495981,142.42,142.41,7.0211]
[1742902124925,0.0495981,142.42,142.39,0.05387983]
[1742902125127,0.0495981,142.42,142.41,7.0211]
[1742902128732,0.0495981,142.42,142.4,7.0213]
[1742902129032,0.0495981,142.42,142.39,0.05387983]
[1742902129227,0.0495981,142.42,142.4,7.0215]
[1742902130028,7.0701981,142.42,142.39,7.07577983]
[1742902132039,0.0495981,142.42,142.39,0.05387983]
[1742902133041,7.0211,142.41,142.39,0.05387983]
[1742902133237,0.0495981,142.42,142.39,0.05387983]
[1742902133736,7.0216,142.4,142.39,0.05387983]
[1742902134635,0.0495981,142.42,142.39,0.05387983]
[1742902135247,7.0211,142.41,142.39,0.05387983]
[1742902135643,0.0495981,142.42,142.39,7.07587983]
[1742902135842,7.0704981,142.42,142.39,7.07587983]
[1742902137551,7.0211,142.41,142.39,7.07587983]
[1742902137848,0.0495981,142.42,142.39,7.07587983]
[1742902138350,7.0706981,142.42,142.39,7.07587983]
[1742902139948,7.0706981,142.42,142.39,0.05387983]
[1742902139949,7.0211,142.41,142.39,0.05387983]
[1742902140746,0.0495981,142.42,142.39,0.05387983]
[1742902142252,7.0704981,142.42,142.39,7.07597983]
[1742902142453,0.0495981,142.42,142.39,0.05387983]
[1742902143053,7.0211,142.41,142.39,0.05387983]
[1742902144153,7.0216,142.4,142.39,0.05387983]
[1742902146852,7.0213,142.41,142.39,0.05387983]
[1742902147358,7.0703981,142.42,142.39,0.05387983]
[1742902147857,0.0495981,142.42,142.39,0.05387983]
[1742902148257,0.0495981,142.42,142.41,7.0211]
[1742902148654,0.0495981,142.42,142.39,0.05387983]
[1742902149059,0.0495981,142.42,142.4,7.0214]
[1742902150960,0.0495981,142.42,142.41,7.0211]
[1742902165565,0.0495981,142.42,142.4,7.0214]
[1742902167372,0.0495981,142.42,142.41,7.0211]
[1742902181883,0.0495981,142.42,142.4,7.0214]
[1742902182382,0.0495981,142.42,142.39,0.05387983]
[1742902183085,7.0214,142.41,142.39,7.07577983]
[1742902186790,7.0216,142.4,142.39,0.05387983]
[1742902187188,0.0495981,142.42,142.39,0.05387983]
[1742902187989,7.0704981,142.42,142.4,7.0213]
[1742902188186,0.0495981,142.42,142.39,0.05387983]
[1742902188694,0.0495981,142.42,142.4,7.0216]
[1742902188894,0.0495981,142.42,142.39,0.05387983]
[1742902189304,0.0495981,142.42,142.4,7.0211]
[1742902189492,0.0495981,142.42,142.39,0.05387983]
[1742902189989,0.0495981,142.42,142.41,7.0211]
[1742902196192,0.0495981,142.42,142.39,0.05387983]
[1742902196193,0.0495981,142.42,142.4,7.0213]
[1742902196393,0.0495981,142.42,142.39,0.05387983]
[1742902197098,7.0701981,142.42,142.39,7.07567983]
[1742902198797,0.0495981,142.42,142.4,7.0216]
[1742902200302,0.0495981,142.42,142.41,7.0211]
[1742902201107,0.0495981,142.42,142.39,0.05387983]
[1742902201605,7.0703981,142.42,142.39,0.05387983]
[1742902201805,0.0495981,142.42,142.39,0.05387983]
[1742902202705,7.0214,142.41,142.39,0.05387983]
[1742902204005,0.0495981,142.42,142.39,0.05387983]
[1742902204603,0.0495981,142.42,142.4,7.0213]
[1742902205812,0.0495981,142.42,142.41,7.0211]
[1742902209321,9.646343,142.5,142.47,7.0179]
[1742902210109,7.0172,142.49,142.47,7.0179]
[1742902210507,7.0701705,142.49,142.47,7.0681466]
[1742902210712,0.0529705,142.49,142.48,7.0176]
[1742902214517,0.0529705,142.49,142.47,0.0502466]
[1742902216321,0.0529705,142.49,142.47,7.0682466]
[1742902217016,7.0701705,142.49,142.47,0.0502466]
[1742902217918,7.0176,142.48,142.47,0.0502466]
[1742902220718,7.0703705,142.49,142.47,0.0502466]
[1742902221121,7.0176,142.48,142.47,0.0502466]
[1742902221322,0.0529705,142.49,142.47,0.0502466]
[1742902221723,7.0176,142.48,142.47,0.0502466]
[1742902225226,7.0704705,142.49,142.47,0.0502466]
[1742902225525,0.0529705,142.49,142.47,0.0502466]
[1742902226033,7.0176,142.48,142.47,0.0502466]
[1742902227029,15.34185073,142.48,142.4,7.0214]
[1742902227339,8.32185073,142.48,142.38,0.12432696]
[1742902227726,7.0209,142.42,142.39,7.0218]
[1742902228228,0.05025309,142.42,142.4,7.0213]
[1742902228527,0.05025309,142.42,142.39,0.04630022]
[1742902229232,0.05025309,142.42,142.41,7.0211]
[1742902235035,0.05025309,142.42,142.39,0.04630022]
[1742902235435,7.0216,142.4,142.39,0.04630022]
[1742902248055,8.37210382,142.42,142.26,387.37815073]
[1742902248356,8.32185073,142.4,142.27,25.22]
[1742902248757,7.024,142.36,142.32,7.0252]
[1742902249054,7.024,142.36,142.27,25.22]
[1742902249243,0.05168502,142.35,142.33,0.05136281]
[1742902249446,1.22287622,142.43,142.33,0.05052295]
[1742902249644,0.04564067,142.35,142.34,7.0245]
[1742902249856,7.0219,142.4,142.37,0.04498385]
[1742902250149,7.06826705,142.4,142.37,0.05323718]
[1742902250356,7.06836705,142.4,142.37,0.05323718]
[1742902251055,7.0222,142.39,142.37,0.05323718]
[1742902251652,0.04636705,142.4,142.37,0.05323718]
[1742902251858,7.06826705,142.4,142.37,0.05323718]
[1742902252059,0.04636705,142.4,142.37,0.05323718]
[1742902252262,7.06816705,142.4,142.37,0.05323718]
[1742902252854,7.0221,142.39,142.37,0.05323718]
[1742902253356,0.04636705,142.4,142.37,7.07623718]
[1742902253550,7.06816705,142.4,142.37,7.07623718]
[1742902253755,0.04636705,142.4,142.38,7.0224]
[1742902255164,0.04636705,142.4,142.39,7.0221]
[1742902255856,0.04636705,142.4,142.38,7.0223]
[1742902256261,0.04636705,142.4,142.37,0.05323718]
[1742902257064,7.06846705,142.4,142.37,7.07603718]
[1742902258765,7.0221,142.39,142.37,0.05323718]
[1742902258965,0.04636705,142.4,142.37,0.05323718]
[1742902259266,7.06836705,142.4,142.37,0.05323718]
[1742902259766,0.04636705,142.4,142.37,0.05323718]
[1742902259964,7.0221,142.39,142.37,0.05323718]
[1742902260464,0.04636705,142.4,142.37,0.05323718]
[1742902261266,0.04636705,142.4,142.38,7.0223]
[1742902261663,0.04636705,142.4,142.39,7.0221]
[1742902263163,6.705e-05,142.4,142.39,7.0221]
[1742902263361,38.58537201,142.48,142.45,7.019]
[1742902263672,38.58537201,142.48,142.39,25.22]
[1742902263969,38.58537201,142.48,142.46,7.0186]
[1742902264470,38.63337756,142.48,142.47,7.0181]
[1742902265164,38.63337756,142.48,142.46,0.04827461]
[1742902265765,38.63337756,142.48,142.46,7.06657461]
[1742902265963,38.63337756,142.48,142.46,0.04827461]
[1742902266974,0.04800555,142.48,142.46,0.04827461]
[1742902267969,7.06570555,142.48,142.46,0.04827461]
[1742902268271,0.04800555,142.48,142.46,0.04827461]
[1742902270169,7.0181,142.47,142.46,0.04827461]
[1742902279193,0.04800555,142.48,142.46,0.04827461]
[1742902279389,0.04800555,142.48,142.47,7.0181]
[1742902283988,0.04800555,142.48,142.46,0.04827461]
[1742902284997,0.04800555,142.48,142.46,7.06687461]
[1742902288291,0.04800555,142.48,142.47,7.0181]
[1742902294804,19.18978215,142.58,142.51,7.016]
[1742902295397,7.0151,142.54,142.51,7.016]
[1742902295600,17.96819373,142.58,142.44,14.039]
[1742902295601,17.96819373,142.58,142.5,7.0164]
[1742902295801,0.04639358,142.55,142.53,0.04767384]
[1742902296399,7.0147,142.54,142.53,0.04767384]
[1742902298703,0.04639358,142.55,142.53,0.04767384]
[1742902299103,0.04639358,142.55,142.54,7.0147]
[1742902301107,0.04639358,142.55,142.53,7.06257384]
[1742902302806,0.04639358,142.55,142.53,0.04767384]
[1742902303296,7.0147,142.54,142.53,0.04767384]
[1742902307706,7.0161,142.52,142.48,7.0174]
[1742902308003,8.32185073,142.56,142.45,25.18]
[1742902308209,8.32185073,142.56,142.47,7.0181]
[1742902308511,7.0169,142.5,142.47,7.0181]
[1742902308712,8.32185073,142.56,142.46,7.0184]
[1742902308911,0.0500902,142.5,142.47,0.04659414]
[1742902309109,8.32185073,142.54,142.41,621.76]
[1742902309314,0.04594264,142.5,142.47,0.05363784]
[1742902309717,0.04594264,142.5,142.48,7.0174]
[1742902309914,0.04594264,142.5,142.47,0.05363784]
[1742902310311,0.04594264,142.5,142.48,7.0174]
[1742902312415,0.04594264,142.5,142.47,7.07153784]
[1742902312617,0.04594264,142.5,142.47,0.05363784]
[1742902314122,7.06284264,142.5,142.47,0.05363784]
[1742902314612,0.04594264,142.5,142.47,0.05363784]
[1742902314916,0.04594264,142.5,142.49,7.0171]
[1742902315813,0.04594264,142.5,142.48,7.0175]
[1742902316612,0.04594264,142.5,142.49,7.0171]
[1742902316816,0.04594264,142.5,142.47,0.05363784]
[1742902318112,7.0175,142.49,142.47,0.05363784]
[1742902318321,0.04594264,142.5,142.47,0.05363784]
[1742902318719,0.04594264,142.5,142.48,7.0174]
[1742902319418,0.04594264,142.5,142.47,7.07153784]
[1742902319621,7.06264264,142.5,142.47,7.07153784]
[1742902319816,7.06264264,142.5,142.47,0.05363784]
[1742902320017,0.04594264,142.5,142.47,0.05363784]
[1742902320218,7.0172,142.49,142.47,0.05363784]
[1742902320418,0.04594264,142.5,142.47,0.05363784]
[1742902321120,7.0171,142.49,142.47,0.05363784]
[1742902321320,0.04594264,142.5,142.47,0.05363784]
[1742902321922,7.0171,142.49,142.47,0.05363784]
[1742902323823,7.06274264,142.5,142.47,7.07153784]
[1742902324732,0.04594264,142.5,142.48,7.0175]
[1742902324934,0.04594264,142.5,142.47,0.05363784]
[1742902325328,0.04594264,142.5,142.47,7.07153784]
[1742902325329,7.06264264,142.5,142.47,7.07153784]
[1742902326335,0.04594264,142.5,142.47,7.07153784]
[1742902326627,0.04594264,142.5,142.48,7.0175]
[1742902326826,0.04594264,142.5,142.47,0.05363784]
[1742902328234,7.06284264,142.5,142.47,7.07153784]
[1742902329934,0.04594264,142.5,142.47,0.05363784]
[1742902330432,0.04594264,142.5,142.49,7.0171]
[1742902332734,9.646343,142.59,142.53,7.015]
[1742902333748,7.0134,142.57,142.46,33.50185073]
[1742902334036,7.0134,142.57,142.49,25.18]
[1742902334236,0.04927496,142.53,142.52,7.0157]
[1742902334539,9.646343,142.59,142.49,25.18]
[1742902334836,9.646343,142.59,142.56,7.0136]
[1742902335037,16.658943,142.59,142.56,7.0136]
[1742902335437,7.0126,142.59,142.56,7.0136]
[1742902335639,7.060956,142.59,142.56,7.06754088]
[1742902335940,7.060956,142.59,142.57,7.0132]
[1742902336136,0.048356,142.59,142.56,0.05394088]
[1742902336434,0.048356,142.59,142.58,7.0127]
[1742902337138,0.048356,142.59,142.57,7.0131]
[1742902337330,0.048356,142.59,142.56,0.05394088]
[1742902337729,0.048356,142.59,142.57,7.0129]
[1742902337940,0.048356,142.59,142.56,0.05394088]
[1742902338136,0.048356,142.59,142.56,7.06744088]
[1742902338333,7.060856,142.59,142.56,0.05394088]
[1742902338536,0.048356,142.59,142.56,0.05394088]
[1742902339530,7.0128,142.58,142.56,0.05394088]
[1742902340636,0.048356,142.59,142.56,0.05394088]
[1742902340637,7.0132,142.57,142.56,0.05394088]
[1742902342241,7.0132,142.57,142.56,0.00763683]
[1742902343936,7.0155,142.53,142.5,7.0166]
[1742902344736,7.0155,142.53,142.49,7.0169]
[1742902345140,8.32185073,142.58,142.49,7.0169]
[1742902345141,7.06616265,142.52,142.5,0.04486546]
[1742902345436,7.0159,142.52,142.5,0.04486546]
[1742902345630,7.06270444,142.52,142.5,0.04486546]
[1742902346140,0.04680444,142.52,142.5,0.04486546]
[1742902346340,0.04680444,142.52,142.5,7.06146546]
[1742902346541,0.04680444,142.52,142.5,0.04486546]
[1742902346929,0.04680444,142.52,142.51,7.0162]
[1742902347534,0.04680444,142.52,142.5,0.04486546]
[1742902347730,7.06280444,142.52,142.5,0.04486546]
[1742902347937,0.04680444,142.52,142.5,0.04486546]
[1742902348441,7.06270444,142.52,142.5,0.04486546]
[1742902349236,0.04680444,142.52,142.5,0.04486546]
[1742902350436,0.04680444,142.52,142.51,7.0162]
[1742902350938,0.04680444,142.52,142.5,7.06106546]
[1742902351144,0.04680444,142.52,142.5,0.04486546]
[1742902352536,7.0162,142.51,142.5,0.04486546]
[1742902356539,0.04680444,142.52,142.5,0.04486546]
[1742902357344,7.06260444,142.52,142.5,0.04486546]
[1742902358649,7.0162,142.51,142.5,0.04486546]
[1742902359544,7.06270444,142.52,142.5,0.04486546]
[1742902359745,0.04680444,142.52,142.5,7.06146546]
[1742902362150,0.04680444,142.52,142.5,0.04486546]
[1742902363045,7.06260444,142.52,142.5,0.04486546]
[1742902365653,0.04680444,142.52,142.5,7.06146546]
[1742902365944,0.04680444,142.52,142.5,0.04486546]
[1742902366244,0.04680444,142.52,142.51,7.0162]
[1742902368546,9.646343,142.6,142.55,7.0139]
[1742902368745,7.0135,142.57,142.48,14.0347]
[1742902369452,7.0138,142.56,142.54,7.0144]
[1742902369639,7.0138,142.56,142.54,7.06344279]
[1742902369844,7.06133686,142.56,142.54,7.06344279]
[1742902370745,7.0142,142.55,142.54,0.04904279]
[1742902371856,7.06153686,142.56,142.54,0.04904279]
[1742902372154,0.04753686,142.56,142.54,0.04904279]
[1742902372551,7.06153686,142.56,142.54,7.06354279]
[1742902372951,0.04753686,142.56,142.54,0.04904279]
[1742902373150,0.04753686,142.56,142.55,7.0142]
[1742902380748,46.91632105,142.65,142.59,7.0118]
[1742902381053,38.58537201,142.65,142.53,14.0302]
[1742902381254,7.011,142.62,142.53,14.0302]
[1742902381455,7.011,142.62,142.6,7.0115]
[1742902382052,7.05910031,142.62,142.6,7.0645215]
[1742902382252,7.0112,142.61,142.6,0.0530215]
[1742902385558,7.05910031,142.62,142.6,0.0530215]
[1742902386160,7.0112,142.61,142.6,0.0530215]
[1742902386751,7.05910031,142.62,142.6,0.0530215]
[1742902386955,0.04810031,142.62,142.6,0.0530215]
[1742902387760,7.0112,142.61,142.6,0.0530215]
[1742902390759,7.0137,142.57,142.52,25.16]
[1742902390965,7.0137,142.57,142.5,25.14]
[1742902391262,22.35174904,142.63,142.5,25.14]
[1742902391461,7.013,142.58,142.55,7.0139]
[1742902391964,7.06690235,142.58,142.55,7.06605713]
[1742902392660,0.05390235,142.58,142.56,7.0137]
[1742902392860,0.05390235,142.58,142.55,0.05215713]
[1742902393165,0.05390235,142.58,142.57,7.0132]
[1742902396169,0.05390235,142.58,142.55,0.05215713]
[1742902397068,7.0132,142.57,142.55,0.05215713]
[1742902397571,0.05390235,142.58,142.55,0.05215713]
[1742902397871,0.05390235,142.58,142.56,7.0135]
[1742902398370,0.05390235,142.58,142.57,7.0132]
[1742902399175,0.05390235,142.58,142.56,7.0135]
[1742902399473,0.05390235,142.58,142.55,0.05215713]
[1742902399669,0.05390235,142.58,142.56,7.0137]
[1742902404971,0.05390235,142.58,142.55,0.05215713]
[1742902406279,7.0135,142.57,142.55,0.05215713]
[1742902406478,0.05390235,142.58,142.55,0.05215713]
[1742902407181,7.0136,142.57,142.55,0.05215713]
[1742902407376,0.05390235,142.58,142.55,7.06625713]
[1742902407773,7.06680235,142.58,142.55,7.06625713]
[1742902407970,0.05390235,142.58,142.56,7.0137]
[1742902408579,0.05390235,142.58,142.55,7.06605713]
[1742902408980,7.06670235,142.58,142.55,7.06605713]
[1742902409180,0.05390235,142.58,142.56,7.0137]
[1742902409781,7.06670235,142.58,142.55,7.06605713]
[1742902411875,0.05390235,142.58,142.55,7.06605713]
[1742902412082,0.05390235,142.58,142.55,0.05215713]
[1742902412481,7.0137,142.56,142.55,0.05215713]
[1742902413076,0.05390235,142.58,142.55,7.06615713]
[1742902413282,0.05390235,142.58,142.55,0.05215713]
[1742902413586,7.06690235,142.58,142.55,7.06615713]
[1742902413790,0.05390235,142.58,142.55,7.06615713]
[1742902415089,7.06680235,142.58,142.55,7.06615713]
[1742902415787,0.05390235,142.58,142.55,0.05215713]
[1742902416491,7.06700235,142.58,142.55,7.06615713]
[1742902416692,0.05390235,142.58,142.55,0.05215713]
[1742902417591,7.06660235,142.58,142.56,7.0136]
[1742902418193,7.06660235,142.58,142.55,7.06605713]
[1742902418793,7.06660235,142.58,142.56,7.0136]
[1742902419291,7.06660235,142.58,142.55,7.06615713]
[1742902419493,7.0133,142.57,142.55,7.06615713]
[1742902421091,7.0137,142.56,142.55,0.05215713]
[1742902423597,7.0137,142.56,142.55,7.06635713]
[1742902424098,7.0137,142.56,142.55,0.05215713]
[1742902424897,7.0135,142.57,142.55,0.05215713]
[1742902426101,7.06690235,142.58,142.55,0.05215713]
[1742902427802,0.05390235,142.58,142.55,0.05215713]
[1742902428302,0.05390235,142.58,142.57,7.0132]
[1742902431802,2.35e-06,142.58,142.57,7.0132]
[1742902437003,2.35e-06,142.58,142.57,14.0332]
[1742902438199,38.58537201,142.69,142.64,7.0093]
[1742902438404,38.58537201,142.69,142.58,14.0254]
[1742902439402,0.04563076,142.65,142.62,0.05158672]
[1742902439607,0.04563076,142.65,142.63,7.0103]
[1742902440402,7.0103,142.63,142.62,0.05158672]
[1742902449612,0.04563076,142.65,142.62,0.05158672]
[1742902450113,7.01,142.64,142.62,0.05158672]
[1742902450304,0.04563076,142.65,142.62,0.05158672]
[1742902450804,7.0103,142.63,142.62,0.05158672]
[1742902452617,8.33322903,142.64,142.52,25.12]
[1742902452817,8.33322903,142.64,142.56,7.0134]
[1742902453018,7.0125,142.59,142.56,7.0134]
[1742902453717,7.05679076,142.59,142.56,7.05984225]